[Event "*** Titled Tuesday Blitz"]
[Site "Chess.com"]
[Date "2018.10.02"]
[Round "2"]
[White "ChainsOfFantasia"]
[Black "Aklanion"]
[Result "0-1"]
[WhiteElo "2355"]
[BlackElo "2161"]
[TimeControl "180+2"]
[EndTime "13:22:18 PDT"]
[Termination "Aklanion won by checkmate"]

1. Nc3 {[%clk 0:03:01.9]} 1... d5 {[%clk 0:02:56.6]} 2. e3 {[%clk 0:03:01.9]}
2... Nf6 {[%clk 0:02:56.1]} 3. d4 {[%clk 0:03:00.6]} 3... g6 {[%clk 0:02:55.9]}
4. f4 {[%clk 0:02:57.7]} 4... Bg7 {[%clk 0:02:55.6]} 5. Nf3 {[%clk 0:02:58.8]}
5... O-O {[%clk 0:02:55.1]} 6. Be2 {[%clk 0:02:57.8]} 6... c5 {[%clk 0:02:56.3]}
7. O-O {[%clk 0:02:57.2]} 7... cxd4 {[%clk 0:02:55.9]} 8. exd4 {[%clk
0:02:59.1]} 8... Bf5 {[%clk 0:02:51.1]} 9. Nh4 {[%clk 0:02:45.2]} 9... Nc6
{[%clk 0:02:47.8]} 10. Nxf5 {[%clk 0:02:40.5]} 10... gxf5 {[%clk 0:02:49.7]} 11.
Be3 {[%clk 0:02:39]} 11... Rc8 {[%clk 0:02:49.1]} 12. Rc1 {[%clk 0:02:34.4]}
12... Qa5 {[%clk 0:02:47.8]} 13. Qe1 {[%clk 0:02:33.4]} 13... Qb4 {[%clk
0:02:38.5]} 14. Nd1 {[%clk 0:02:12]} 14... Qxe1 {[%clk 0:02:29.4]} 15. Rxe1
{[%clk 0:02:13.9]} 15... Ne4 {[%clk 0:01:58.2]} 16. Nc3 {[%clk 0:02:14.9]} 16...
Nxc3 {[%clk 0:01:33.1]} 17. bxc3 {[%clk 0:02:16.8]} 17... Na5 {[%clk 0:01:28.7]}
18. Bd2 {[%clk 0:02:17]} 18... b6 {[%clk 0:01:28.3]} 19. g4 {[%clk 0:02:05.7]}
19... fxg4 {[%clk 0:01:26]} 20. Bxg4 {[%clk 0:02:06.4]} 20... Rc7 {[%clk
0:01:14.7]} 21. f5 {[%clk 0:01:51.8]} 21... Nc4 {[%clk 0:01:13.7]} 22. Bf4
{[%clk 0:01:50.6]} 22... Rc6 {[%clk 0:01:02.1]} 23. Rxe7 {[%clk 0:01:46.9]}
23... a5 {[%clk 0:00:51.4]} 24. Bf3 {[%clk 0:01:35.2]} 24... Rd8 {[%clk
0:00:49.7]} 25. Bc7 {[%clk 0:01:23.4]} 25... Rc8 {[%clk 0:00:43.2]} 26. Bxd5
{[%clk 0:01:23.8]} 26... R6xc7 {[%clk 0:00:41.7]} 27. Rxc7 {[%clk 0:01:12.4]}
27... Rxc7 {[%clk 0:00:43.3]} 28. Rb1 {[%clk 0:01:11]} 28... Ne3 {[%clk
0:00:38.4]} 29. Be4 {[%clk 0:01:04.9]} 29... Rxc3 {[%clk 0:00:37.6]} 30. Rxb6
{[%clk 0:01:05.2]} 30... Bxd4 {[%clk 0:00:38.9]} 31. Rb8+ {[%clk 0:01:02.8]}
31... Kg7 {[%clk 0:00:39.7]} 32. Rd8 {[%clk 0:00:53]} 32... Bc5 {[%clk
0:00:26.8]} 33. Kh1 {[%clk 0:00:34.2]} 33... Nxc2 {[%clk 0:00:20.9]} 34. Rc8
{[%clk 0:00:28.3]} 34... Ne3 {[%clk 0:00:18.8]} 35. Rc6 {[%clk 0:00:28.2]} 35...
Rc1# {[%clk 0:00:08.6]} 0-1

[Event "*** Titled Tuesday Blitz"]
[Site "Chess.com"]
[Date "2018.10.02"]
[Round "2"]
[White "Perecke"]
[Black "Synctel"]
[Result "1-0"]
[WhiteElo "1968"]
[BlackElo "1978"]
[TimeControl "180+2"]
[EndTime "13:22:20 PDT"]
[Termination "Perecke won by resignation"]

1. e4 {[%clk 0:03:01.9]} 1... e6 {[%clk 0:02:45.3]} 2. d4 {[%clk 0:03:01.9]}
2... d5 {[%clk 0:02:42.7]} 3. Nc3 {[%clk 0:03:02.8]} 3... Nf6 {[%clk 0:02:42.9]}
4. e5 {[%clk 0:03:03.6]} 4... Nfd7 {[%clk 0:02:43.6]} 5. Nce2 {[%clk 0:03:04.9]}
5... c5 {[%clk 0:02:41.8]} 6. c3 {[%clk 0:03:06]} 6... Nc6 {[%clk 0:02:37.7]} 7.
f4 {[%clk 0:03:06]} 7... f5 {[%clk 0:02:34.2]} 8. Nf3 {[%clk 0:03:04.6]} 8...
Be7 {[%clk 0:02:31.6]} 9. g3 {[%clk 0:03:03.7]} 9... O-O {[%clk 0:02:30.7]} 10.
Bg2 {[%clk 0:03:04.4]} 10... b6 {[%clk 0:02:31.3]} 11. O-O {[%clk 0:03:04.6]}
11... Qc7 {[%clk 0:02:27.9]} 12. h3 {[%clk 0:02:59.7]} 12... Ba6 {[%clk
0:02:27.5]} 13. Be3 {[%clk 0:03:00]} 13... Rac8 {[%clk 0:02:24.8]} 14. Rc1
{[%clk 0:03:00.3]} 14... Na5 {[%clk 0:02:18.3]} 15. b3 {[%clk 0:02:58.7]} 15...
Nb8 {[%clk 0:02:11.3]} 16. g4 {[%clk 0:02:15.7]} 16... g6 {[%clk 0:01:48.7]} 17.
gxf5 {[%clk 0:02:16]} 17... gxf5 {[%clk 0:01:33.8]} 18. Kh2 {[%clk 0:02:06.2]}
18... Kh8 {[%clk 0:01:33.8]} 19. Rg1 {[%clk 0:02:01.4]} 19... Bxe2 {[%clk
0:01:26.4]} 20. Qxe2 {[%clk 0:02:01.9]} 20... Qd7 {[%clk 0:01:19]} 21. Bh1
{[%clk 0:01:25.3]} 21... Rg8 {[%clk 0:01:13]} 22. h4 {[%clk 0:01:20.1]} 22...
cxd4 {[%clk 0:01:04.6]} 23. cxd4 {[%clk 0:01:20]} 23... Nbc6 {[%clk 0:00:42.1]}
24. Ng5 {[%clk 0:01:10.8]} 24... Ba3 {[%clk 0:00:37]} 25. Rc2 {[%clk 0:00:36.6]}
25... Nb4 {[%clk 0:00:19.5]} 26. Rxc8 {[%clk 0:00:25.7]} 26... Rxc8 {[%clk
0:00:21.4]} 27. Qh5 {[%clk 0:00:26.2]} 27... Rf8 {[%clk 0:00:13.1]} 28. Qh6
{[%clk 0:00:26.7]} 28... Qe7 {[%clk 0:00:11.5]} 29. Nxe6 {[%clk 0:00:22.5]}
29... Rg8 {[%clk 0:00:06.3]} 30. Rxg8+ {[%clk 0:00:14.9]} 30... Kxg8 {[%clk
0:00:08.2]} 31. Ng5 {[%clk 0:00:14.1]} 31... Nc2 {[%clk 0:00:08.2]} 32. Bxd5+
{[%clk 0:00:13.8]} 32... Kh8 {[%clk 0:00:08.5]} 1-0

[Event "*** Titled Tuesday Blitz"]
[Site "Chess.com"]
[Date "2018.10.02"]
[Round "2"]
[White "robbykevlishvili"]
[Black "josmito10"]
[Result "1-0"]
[WhiteElo "2664"]
[BlackElo "2750"]
[TimeControl "180+2"]
[EndTime "13:22:21 PDT"]
[Termination "robbykevlishvili won by resignation"]

1. e4 {[%clk 0:03:01.9]} 1... c5 {[%clk 0:03:00.8]} 2. Nf3 {[%clk 0:03:03.1]}
2... d6 {[%clk 0:03:00.7]} 3. d4 {[%clk 0:03:04.3]} 3... cxd4 {[%clk 0:03:02.6]}
4. Nxd4 {[%clk 0:03:05.8]} 4... Nf6 {[%clk 0:03:04.1]} 5. Nc3 {[%clk 0:03:06.7]}
5... a6 {[%clk 0:03:05.7]} 6. Bc4 {[%clk 0:03:04.7]} 6... e6 {[%clk 0:02:58]} 7.
f4 {[%clk 0:03:05.2]} 7... b5 {[%clk 0:02:53]} 8. Bb3 {[%clk 0:03:01.9]} 8...
Bb7 {[%clk 0:02:44.9]} 9. O-O {[%clk 0:03:00.7]} 9... Be7 {[%clk 0:02:38.1]} 10.
e5 {[%clk 0:02:52.7]} 10... dxe5 {[%clk 0:02:26.8]} 11. fxe5 {[%clk 0:02:54.6]}
11... Bc5 {[%clk 0:02:21.2]} 12. Be3 {[%clk 0:02:48.4]} 12... Nc6 {[%clk
0:02:22]} 13. exf6 {[%clk 0:02:49.1]} 13... Bxd4 {[%clk 0:02:21.6]} 14. Bxd4
{[%clk 0:02:45.9]} 14... Qxd4+ {[%clk 0:02:23.5]} 15. Qxd4 {[%clk 0:02:45.9]}
15... Nxd4 {[%clk 0:02:24.6]} 16. Rad1 {[%clk 0:02:39]} 16... Nxb3 {[%clk
0:02:22]} 17. axb3 {[%clk 0:02:40.9]} 17... gxf6 {[%clk 0:02:14.3]} 18. Rxf6
{[%clk 0:02:39.6]} 18... Rg8 {[%clk 0:02:15.5]} 19. g3 {[%clk 0:02:39.9]} 19...
Rg6 {[%clk 0:02:07.2]} 20. Rf4 {[%clk 0:02:38.3]} 20... Ke7 {[%clk 0:02:03.3]}
21. Ne2 {[%clk 0:02:37.2]} 21... e5 {[%clk 0:01:43.1]} 22. Rh4 {[%clk
0:02:36.9]} 22... h6 {[%clk 0:01:41]} 23. c3 {[%clk 0:02:36.5]} 23... f5 {[%clk
0:01:32]} 24. Kf2 {[%clk 0:02:36.4]} 24... Rf8 {[%clk 0:01:31.3]} 25. Ke3 {[%clk
0:02:31.1]} 25... Ke6 {[%clk 0:01:26.3]} 26. Nc1 {[%clk 0:02:28.9]} 26... Bd5
{[%clk 0:01:05.8]} 27. Nd3 {[%clk 0:02:29.1]} 27... Rc8 {[%clk 0:01:00.3]} 28.
b4 {[%clk 0:02:29.6]} 28... Rc4 {[%clk 0:00:21.4]} 29. Nc5+ {[%clk 0:02:22.9]}
29... Kd6 {[%clk 0:00:22.9]} 30. Rxc4 {[%clk 0:02:12.2]} 30... bxc4 {[%clk
0:00:24.8]} 31. Ra1 {[%clk 0:02:13.3]} 31... f4+ {[%clk 0:00:20.2]} 32. gxf4
{[%clk 0:02:13.9]} 32... exf4+ {[%clk 0:00:22.1]} 33. Kxf4 {[%clk 0:02:15.5]}
33... Rf6+ {[%clk 0:00:22.1]} 34. Ke3 {[%clk 0:02:14.8]} 34... Rf3+ {[%clk
0:00:22.7]} 35. Ke2 {[%clk 0:02:15]} 35... Rh3 {[%clk 0:00:23.6]} 36. Rxa6+
{[%clk 0:02:15.7]} 36... Ke5 {[%clk 0:00:20.3]} 37. Nd7+ {[%clk 0:02:13.4]}
37... Kf5 {[%clk 0:00:20.6]} 38. Rf6+ {[%clk 0:02:14.2]} 38... Kg5 {[%clk
0:00:18.9]} 39. Rf2 {[%clk 0:02:14.1]} 39... Be4 {[%clk 0:00:18.7]} 40. Nf6
{[%clk 0:02:12.1]} 40... Bd3+ {[%clk 0:00:19.5]} 41. Kd2 {[%clk 0:02:13.4]}
41... Kg6 {[%clk 0:00:10.8]} 42. Ng4 {[%clk 0:02:13.5]} 42... Rh5 {[%clk
0:00:09.3]} 43. b3 {[%clk 0:02:09.8]} 43... Rd5 {[%clk 0:00:07.4]} 44. Ne3
{[%clk 0:02:09.5]} 44... Rd8 {[%clk 0:00:06.4]} 45. bxc4 {[%clk 0:02:10.5]}
45... Bxc4+ {[%clk 0:00:07.2]} 46. Kc2 {[%clk 0:02:11.6]} 46... Bd3+ {[%clk
0:00:06.7]} 47. Kb3 {[%clk 0:02:12.8]} 47... Be4 {[%clk 0:00:06.1]} 48. Ng4
{[%clk 0:02:11.7]} 48... Kg5 {[%clk 0:00:06.8]} 49. Ne5 {[%clk 0:02:12.1]} 49...
Rd1 {[%clk 0:00:06.8]} 50. b5 {[%clk 0:02:11.6]} 50... Rb1+ {[%clk 0:00:07.7]}
51. Kc4 {[%clk 0:02:12.2]} 51... h5 {[%clk 0:00:08.1]} 52. Kc5 {[%clk
0:02:11.9]} 52... h4 {[%clk 0:00:09.3]} 53. c4 {[%clk 0:02:12.6]} 53... h3
{[%clk 0:00:10.6]} 54. Nf3+ {[%clk 0:02:11.4]} 54... Kf4 {[%clk 0:00:06.3]} 55.
Nd2+ {[%clk 0:02:11.6]} 55... Ke3 {[%clk 0:00:07.8]} 56. Nxe4 {[%clk 0:02:11.8]}
56... Kxe4 {[%clk 0:00:07.1]} 57. b6 {[%clk 0:02:13.2]} 57... Ke3 {[%clk
0:00:06.5]} 58. Ra2 {[%clk 0:02:13.8]} 58... Kf3 {[%clk 0:00:07]} 59. Kc6 {[%clk
0:02:14.7]} 1-0

[Event "*** Titled Tuesday Blitz"]
[Site "Chess.com"]
[Date "2018.10.02"]
[Round "2"]
[White "PulpanJ"]
[Black "hypert"]
[Result "1-0"]
[WhiteElo "2602"]
[BlackElo "2339"]
[TimeControl "180+2"]
[EndTime "13:22:37 PDT"]
[Termination "PulpanJ won by resignation"]

1. e4 {[%clk 0:03:01.6]} 1... e5 {[%clk 0:02:59.8]} 2. Nf3 {[%clk 0:03:00.5]}
2... Nc6 {[%clk 0:03:00.8]} 3. Bc4 {[%clk 0:03:02.2]} 3... Bc5 {[%clk
0:03:00.8]} 4. c3 {[%clk 0:03:01.4]} 4... Nf6 {[%clk 0:03:01.6]} 5. d4 {[%clk
0:03:03]} 5... exd4 {[%clk 0:03:00.4]} 6. O-O {[%clk 0:03:04.9]} 6... O-O {[%clk
0:02:50.7]} 7. cxd4 {[%clk 0:03:05.6]} 7... Bb6 {[%clk 0:02:50.4]} 8. e5 {[%clk
0:03:06.2]} 8... d5 {[%clk 0:02:42.1]} 9. exf6 {[%clk 0:03:06.4]} 9... dxc4
{[%clk 0:02:43.1]} 10. fxg7 {[%clk 0:03:08.3]} 10... Re8 {[%clk 0:02:41.3]} 11.
d5 {[%clk 0:03:00.3]} 11... Nb4 {[%clk 0:02:41.9]} 12. Nc3 {[%clk 0:03:00.9]}
12... Bf5 {[%clk 0:02:38.3]} 13. Bg5 {[%clk 0:02:53.6]} 13... f6 {[%clk
0:02:28.4]} 14. Bh4 {[%clk 0:02:51.8]} 14... Qd6 {[%clk 0:02:03.3]} 15. a3
{[%clk 0:02:38]} 15... Nd3 {[%clk 0:02:01.4]} 16. Qd2 {[%clk 0:02:35]} 16...
Kxg7 {[%clk 0:01:56]} 17. Bg3 {[%clk 0:02:23.8]} 17... Qd7 {[%clk 0:01:55.1]}
18. d6 {[%clk 0:01:49]} 18... c6 {[%clk 0:01:42.4]} 19. Na4 {[%clk 0:01:45.3]}
19... Bd8 {[%clk 0:01:35.9]} 20. Ne1 {[%clk 0:01:24.5]} 20... b5 {[%clk
0:01:36]} 21. Nxd3 {[%clk 0:01:19.9]} 21... Bxd3 {[%clk 0:01:34.1]} 22. Nc5
{[%clk 0:01:20.6]} 22... Qf5 {[%clk 0:01:28.9]} 23. Nxd3 {[%clk 0:01:20.4]}
23... cxd3 {[%clk 0:01:23.6]} 24. Rfd1 {[%clk 0:01:15.8]} 24... Re2 {[%clk
0:01:18.5]} 25. Qxd3 {[%clk 0:01:17.1]} 25... Qxd3 {[%clk 0:01:19.4]} 26. Rxd3
{[%clk 0:01:19]} 26... Bb6 {[%clk 0:01:20.7]} 27. b3 {[%clk 0:01:03.3]} 27... c5
{[%clk 0:01:20.8]} 28. Rad1 {[%clk 0:01:00.6]} 28... c4 {[%clk 0:01:21.6]} 29.
bxc4 {[%clk 0:01:01]} 29... bxc4 {[%clk 0:01:23.5]} 30. Rc3 {[%clk 0:01:02.6]}
30... Rc8 {[%clk 0:01:15.1]} 31. Kf1 {[%clk 0:00:55.7]} 31... Re4 {[%clk
0:01:13.6]} 32. f3 {[%clk 0:00:56]} 32... Rd4 {[%clk 0:01:11.4]} 33. Rxd4 {[%clk
0:00:55.8]} 33... Bxd4 {[%clk 0:01:13.3]} 34. d7 {[%clk 0:00:57.6]} 34... Rd8
{[%clk 0:01:14]} 35. Rxc4 {[%clk 0:00:58.3]} 35... Rxd7 {[%clk 0:01:15.5]} 36.
Rc7 {[%clk 0:00:53.4]} 36... Rxc7 {[%clk 0:01:15.2]} 37. Bxc7 {[%clk 0:00:55.3]}
37... Bc5 {[%clk 0:01:16]} 38. a4 {[%clk 0:00:56.5]} 38... Kf7 {[%clk
0:01:16.9]} 39. Ke2 {[%clk 0:00:58.1]} 39... Ke6 {[%clk 0:01:18.2]} 40. Kd3
{[%clk 0:00:59.7]} 40... Kd5 {[%clk 0:01:19.3]} 41. Bf4 {[%clk 0:00:57.1]} 41...
f5 {[%clk 0:01:20]} 42. Be3 {[%clk 0:00:56.3]} 42... Bd6 {[%clk 0:01:17.2]} 43.
Bxa7 {[%clk 0:00:57.1]} 43... Bxh2 {[%clk 0:01:17.1]} 44. Bf2 {[%clk 0:00:58.3]}
44... h5 {[%clk 0:01:12.3]} 45. a5 {[%clk 0:00:59.5]} 45... Bc7 {[%clk
0:00:59.9]} 46. a6 {[%clk 0:01:00.1]} 46... Kc6 {[%clk 0:01:01.5]} 47. a7 {[%clk
0:01:01.7]} 47... Kb7 {[%clk 0:01:02.6]} 48. Kc4 {[%clk 0:01:03.6]} 48... h4
{[%clk 0:00:56.2]} 49. Kd5 {[%clk 0:01:04.4]} 49... Bh2 {[%clk 0:00:55.2]} 50.
Ke6 {[%clk 0:01:05.3]} 50... f4 {[%clk 0:00:56.2]} 51. Kf5 {[%clk 0:01:06.8]}
51... Bg3 {[%clk 0:00:55.5]} 52. Bxg3 {[%clk 0:01:07.9]} 52... hxg3 {[%clk
0:00:57.1]} 53. Kg4 {[%clk 0:01:09.4]} 53... Kxa7 {[%clk 0:00:58.6]} 54. Kxf4
{[%clk 0:01:11.3]} 54... Kb6 {[%clk 0:01:00.2]} 55. Kxg3 {[%clk 0:01:13.2]} 1-0

[Event "*** Titled Tuesday Blitz"]
[Site "Chess.com"]
[Date "2018.10.02"]
[Round "2"]
[White "Tjktiger"]
[Black "mjray79"]
[Result "1/2-1/2"]
[WhiteElo "2700"]
[BlackElo "2128"]
[TimeControl "180+2"]
[EndTime "13:22:38 PDT"]
[Termination "Game drawn by repetition"]

1. d4 {[%clk 0:03:01.9]} 1... Nf6 {[%clk 0:02:59.6]} 2. c4 {[%clk 0:03:03]} 2...
e6 {[%clk 0:02:59.8]} 3. Nc3 {[%clk 0:03:03.3]} 3... Bb4 {[%clk 0:02:59.3]} 4.
Nf3 {[%clk 0:03:04.8]} 4... d5 {[%clk 0:02:55.4]} 5. Qa4+ {[%clk 0:03:03.8]}
5... Nc6 {[%clk 0:02:53.4]} 6. e3 {[%clk 0:03:05.2]} 6... O-O {[%clk 0:02:50.7]}
7. Qc2 {[%clk 0:03:06.3]} 7... Re8 {[%clk 0:02:43.8]} 8. cxd5 {[%clk 0:02:58]}
8... exd5 {[%clk 0:02:36.7]} 9. Bd3 {[%clk 0:02:58.9]} 9... Bg4 {[%clk
0:02:31.5]} 10. Nd2 {[%clk 0:02:57.2]} 10... Nxd4 {[%clk 0:02:28.1]} 11. Qb1
{[%clk 0:02:56.3]} 11... Nc6 {[%clk 0:02:12.3]} 12. O-O {[%clk 0:02:56.8]} 12...
d4 {[%clk 0:02:08.5]} 13. exd4 {[%clk 0:02:52.4]} 13... Nxd4 {[%clk 0:02:03.3]}
14. Nde4 {[%clk 0:02:47]} 14... Bxc3 {[%clk 0:01:40.3]} 15. Nxc3 {[%clk
0:02:47.2]} 15... Ne2+ {[%clk 0:01:38.3]} 16. Bxe2 {[%clk 0:02:44.2]} 16... Bxe2
{[%clk 0:01:38.3]} 17. Nxe2 {[%clk 0:02:45.6]} 17... Rxe2 {[%clk 0:01:37.4]} 18.
Bg5 {[%clk 0:02:45.7]} 18... Re5 {[%clk 0:01:35.3]} 19. Bf4 {[%clk 0:02:43]}
19... Re2 {[%clk 0:01:25]} 20. Bg5 {[%clk 0:02:39]} 20... h6 {[%clk 0:01:24.7]}
21. Bh4 {[%clk 0:02:39.5]} 21... Qd4 {[%clk 0:01:24.3]} 22. Bxf6 {[%clk
0:02:34.8]} 22... Qxf6 {[%clk 0:01:24.5]} 23. b3 {[%clk 0:02:35]} 23... Rd8
{[%clk 0:01:19.4]} 24. Qc1 {[%clk 0:02:35]} 24... Rdd2 {[%clk 0:01:15.1]} 25.
Qc5 {[%clk 0:02:35.5]} 25... Rxf2 {[%clk 0:01:11.4]} 26. Rxf2 {[%clk 0:02:36.3]}
26... Qxa1+ {[%clk 0:01:11]} 27. Rf1 {[%clk 0:02:37.7]} 27... Rd1 {[%clk
0:01:11.4]} 28. Rxd1 {[%clk 0:02:35.8]} 28... Qxd1+ {[%clk 0:01:11.4]} 29. Kf2
{[%clk 0:02:37.7]} 29... Qd2+ {[%clk 0:01:11.5]} 30. Kf1 {[%clk 0:02:38.5]}
30... Qd3+ {[%clk 0:01:07.9]} 31. Kf2 {[%clk 0:02:39.4]} 31... Qd6 {[%clk
0:01:01.5]} 32. Qxa7 {[%clk 0:02:38.8]} 32... Qb6+ {[%clk 0:01:02.4]} 33. Qxb6
{[%clk 0:02:39.3]} 33... cxb6 {[%clk 0:01:03.1]} 34. Ke3 {[%clk 0:02:40.7]}
34... Kf8 {[%clk 0:01:03.9]} 35. Kd4 {[%clk 0:02:40.3]} 35... Ke7 {[%clk
0:01:03.5]} 36. Ke5 {[%clk 0:02:39.3]} 36... g6 {[%clk 0:00:57.1]} 37. g4 {[%clk
0:02:38.9]} 37... f6+ {[%clk 0:00:55.4]} 38. Kd5 {[%clk 0:02:40]} 38... h5
{[%clk 0:00:52.6]} 39. gxh5 {[%clk 0:02:38.3]} 39... gxh5 {[%clk 0:00:51.7]} 40.
h4 {[%clk 0:02:39.9]} 40... Kd7 {[%clk 0:00:51]} 41. a4 {[%clk 0:02:39.4]} 41...
Ke7 {[%clk 0:00:51.3]} 42. b4 {[%clk 0:02:36]} 42... Kd7 {[%clk 0:00:51.8]} 43.
a5 {[%clk 0:02:06.7]} 43... bxa5 {[%clk 0:00:50.6]} 44. bxa5 {[%clk 0:02:08.6]}
44... Ke7 {[%clk 0:00:39.3]} 45. Kc5 {[%clk 0:02:02.1]} 45... Kd7 {[%clk
0:00:29.7]} 46. Kd5 {[%clk 0:02:02]} 46... Ke7 {[%clk 0:00:29.5]} 47. Kc5 {[%clk
0:01:41.4]} 47... Kd7 {[%clk 0:00:14.7]} 48. Kd5 {[%clk 0:01:27.3]} 48... Ke7
{[%clk 0:00:14.9]} 1/2-1/2

[Event "*** Titled Tuesday Blitz"]
[Site "Chess.com"]
[Date "2018.10.02"]
[Round "2"]
[White "Quiet_Desperation"]
[Black "chesstatour"]
[Result "0-1"]
[WhiteElo "1900"]
[BlackElo "2009"]
[TimeControl "180+2"]
[EndTime "13:22:38 PDT"]
[Termination "chesstatour won by resignation"]

1. e4 {[%clk 0:03:01.9]} 1... c6 {[%clk 0:02:59.9]} 2. Nc3 {[%clk 0:03:02.7]}
2... d5 {[%clk 0:02:59.9]} 3. Nf3 {[%clk 0:03:04.6]} 3... dxe4 {[%clk
0:03:00.4]} 4. Nxe4 {[%clk 0:03:06.5]} 4... Nf6 {[%clk 0:03:01.5]} 5. Nxf6+
{[%clk 0:03:08]} 5... gxf6 {[%clk 0:03:02.3]} 6. d4 {[%clk 0:03:09.9]} 6... Bg4
{[%clk 0:03:03]} 7. Bd3 {[%clk 0:03:11.3]} 7... e6 {[%clk 0:03:03.9]} 8. c3
{[%clk 0:03:12.7]} 8... Bd6 {[%clk 0:03:04.5]} 9. Be3 {[%clk 0:03:13.9]} 9...
Qc7 {[%clk 0:03:05.2]} 10. h3 {[%clk 0:03:11.6]} 10... Bh5 {[%clk 0:03:02.9]}
11. Qe2 {[%clk 0:03:09]} 11... Nd7 {[%clk 0:03:01.7]} 12. O-O-O {[%clk
0:03:10.1]} 12... O-O-O {[%clk 0:03:00.2]} 13. Kb1 {[%clk 0:03:11.5]} 13... Kb8
{[%clk 0:02:59.8]} 14. c4 {[%clk 0:03:12.1]} 14... Bf4 {[%clk 0:02:50.6]} 15.
Rc1 {[%clk 0:02:59.4]} 15... Bg6 {[%clk 0:02:48.8]} 16. Bxg6 {[%clk 0:02:57.4]}
16... hxg6 {[%clk 0:02:50.7]} 17. d5 {[%clk 0:02:51.1]} 17... exd5 {[%clk
0:02:27.2]} 18. cxd5 {[%clk 0:02:49.7]} 18... c5 {[%clk 0:02:28.3]} 19. Qd2
{[%clk 0:02:42.8]} 19... Bxe3 {[%clk 0:02:26.7]} 20. Qxe3 {[%clk 0:02:43.9]}
20... Rhe8 {[%clk 0:02:14.7]} 21. Qb3 {[%clk 0:02:37.4]} 21... Qb6 {[%clk
0:01:43.6]} 22. Qc3 {[%clk 0:02:28]} 22... Qb4 {[%clk 0:01:10.7]} 23. Qxb4
{[%clk 0:02:14.8]} 23... cxb4 {[%clk 0:01:12.6]} 24. Rhe1 {[%clk 0:02:14.2]}
24... Nb6 {[%clk 0:01:06.7]} 25. d6 {[%clk 0:02:00.3]} 25... Rxe1 {[%clk
0:01:03.1]} 26. Rxe1 {[%clk 0:02:01.4]} 26... Rxd6 {[%clk 0:00:52.2]} 27. Re7
{[%clk 0:02:01.8]} 27... Rd7 {[%clk 0:00:50.2]} 28. Re8+ {[%clk 0:02:01.9]}
28... Kc7 {[%clk 0:00:50.4]} 29. Re4 {[%clk 0:01:59.2]} 29... a5 {[%clk
0:00:50.4]} 30. Nd4 {[%clk 0:01:55.1]} 30... f5 {[%clk 0:00:41.8]} 31. Rf4
{[%clk 0:01:48.2]} 31... Nd5 {[%clk 0:00:35.7]} 32. Rf3 {[%clk 0:01:48]} 32...
Nf6 {[%clk 0:00:31.9]} 33. Nb3 {[%clk 0:01:40]} 33... Ne4 {[%clk 0:00:28.7]} 34.
Kc2 {[%clk 0:01:35.1]} 34... a4 {[%clk 0:00:26.4]} 35. Na5 {[%clk 0:01:20.7]}
35... Rd2+ {[%clk 0:00:18.3]} 36. Kc1 {[%clk 0:01:21.1]} 36... Rxf2 {[%clk
0:00:18]} 37. Rd3 {[%clk 0:01:13.6]} 37... Rf1+ {[%clk 0:00:16.8]} 38. Kc2
{[%clk 0:01:14.5]} 38... Rf2+ {[%clk 0:00:17.2]} 39. Kc1 {[%clk 0:01:15.9]}
39... Nc5 {[%clk 0:00:14.1]} 40. Rd4 {[%clk 0:01:10.8]} 40... b3 {[%clk
0:00:12.5]} 41. axb3 {[%clk 0:01:08.3]} 41... Nxb3+ {[%clk 0:00:10.5]} 42. Nxb3
{[%clk 0:01:08.5]} 42... axb3 {[%clk 0:00:12.4]} 43. Rc4+ {[%clk 0:01:07.4]}
43... Kb8 {[%clk 0:00:11.5]} 44. Rb4 {[%clk 0:01:07.8]} 44... Rxg2 {[%clk
0:00:12.3]} 45. Rxb3 {[%clk 0:01:09.4]} 45... f4 {[%clk 0:00:13.4]} 46. Rb6
{[%clk 0:01:08.2]} 46... f5 {[%clk 0:00:12.6]} 47. Rb3 {[%clk 0:01:04.3]} 47...
Rg3 {[%clk 0:00:12.1]} 48. Rb4 {[%clk 0:01:05.5]} 48... f3 {[%clk 0:00:12.6]}
49. Rf4 {[%clk 0:01:06.8]} 49... Kc7 {[%clk 0:00:13.5]} 50. Kd2 {[%clk
0:01:08.1]} 50... Kd6 {[%clk 0:00:14.7]} 51. Ke3 {[%clk 0:01:09.6]} 51... Ke5
{[%clk 0:00:13.7]} 52. Rxf3 {[%clk 0:01:09.4]} 52... Rxf3+ {[%clk 0:00:13.7]}
53. Kxf3 {[%clk 0:01:11.3]} 53... g5 {[%clk 0:00:14.6]} 54. Kg3 {[%clk
0:01:12.6]} 54... Ke4 {[%clk 0:00:15.1]} 55. b4 {[%clk 0:01:13.1]} 0-1